[Event "HUN-ch Rapid 2018"]
[Site "Ajka"]
[Date "2018.07.21"]
[Round "8"]
[White "Deak, Sandor"]
[Black "Tancsa, Tamas"]
[Result "1-0"]
[ECO "A53"]
[WhiteElo "2335"]
[BlackElo "1792"]
[Annotator "NA RC"]
[PlyCount "57"]
[EventDate "2018.07.20"]
[EventType "swiss"]
[EventCountry "HUN"]
[SourceTitle "playchess.com"]
[Source "ChessBase"]
[SourceQuality "1"]
[TimeControl "1200+5"]

1. d4 {[%emt 0:00:05]} Nf6 {[%emt 0:00:05]} 2. c4 {[%emt 0:00:05]} d6 {[%emt 0:00:05]} 3. Nc3 {[%emt 0:00:05]} Nbd7 {[%emt 0:00:05]} 4. e4 {[%emt 0:00:05]} e5 {[%emt 0:00:05]} 5. Nge2 {[%emt 0:00:06]} Be7 {[%emt 0:00:56]} 6. f3 {[%emt 0:00:02]} O-O {[%emt 0:00:03]} 7. Be3 {[%emt 0:00:02]} c6 {[%emt 0:01:04]} 8. Qd2 {[%emt 0:00:05]} Qc7 {[%emt 0:00:19]} 9. Rc1 {[%emt 0:00:19]} a6 {[%emt 0:00:35]} 10. Ng3 {[%emt 0:00:30]} exd4 {[%emt 0:01:28]} 11. Bxd4 {[%emt 0:00:01]} Ne5 {[%emt 0:00:01]} 12. Be2 {[%emt 0:00:07]} Be6 13. b3 Rad8 {[%emt 0:00:13]} 14. O-O {[%emt 0:00:42]} d5 {[%emt 0:00:18]} 15. cxd5 {[%emt 0:00:04]} cxd5 {[%emt 0:00:05]} 16. Nxd5 Qd6 17. Bxe5 {[%emt 0:00:40]} Qxe5 {[%emt 0:00:19]} 18. Nxe7+ {[%emt 0:00:02]} Kh8 {[%emt 0:00:01]} 19. Qc3 {[%emt 0:00:35]} Qf4 {[%emt 0:00:25]} 20. Nef5 {[%emt 0:00:11]} Rc8 {[%emt 0:00:28]} 21. Qe3 {[%emt 0:00:03]} Qe5 {[%emt 0:00:14]} 22. Nd4 {[%emt 0:01:22]} Nd5 {[%emt 0:00:09]} 23. Qf2 {[%emt 0:00:00]} Nf4 {[%emt 0:00:25]} 24. Nxe6 {[%emt 0:00:13]} fxe6 {[%emt 0:00:01]} 25. Rxc8 {[%emt 0:02:36]} Rxc8 {[%emt 0:00:02]} 26. Rd1 {[%emt 0:00:04]} h6 {[%emt 0:00:04]} 27. Bf1 {[%emt 0:00:45]} h5 {[%emt 0:01:00]} 28. Ne2 {[%emt 0:00:13]} Rc2 {[%emt 0:00:04]} 29. Nxf4 {[%emt 0:00:04]} 1-0

[Event "HUN-ch Rapid 2018"]
[Site "Ajka"]
[Date "2018.07.21"]
[Round "8"]
[White "Juhasz, Barbara"]
[Black "Dankhazi, Andras"]
[Result "0-1"]
[ECO "C24"]
[WhiteElo "2159"]
[BlackElo "2361"]
[Annotator "NA"]
[PlyCount "74"]
[EventDate "2018.07.20"]
[EventType "swiss"]
[EventCountry "HUN"]
[SourceTitle "playchess.com"]
[Source "ChessBase"]
[SourceQuality "1"]
[TimeControl "1200+5"]

1. e4 {[%emt 0:00:03]} e5 {[%emt 0:00:02]} 2. Bc4 {[%emt 0:00:06]} Nf6 {[%emt 0:00:01]} 3. d3 {[%emt 0:00:00]} c6 {[%emt 0:00:09]} 4. Nc3 {[%emt 0:00:27]} d5 {[%emt 0:00:41]} 5. Bb3 {[%emt 0:00:13]} dxe4 {[%emt 0:00:20]} 6. Nxe4 {[%emt 0:00:31]} Nxe4 {[%emt 0:00:03]} 7. dxe4 {[%emt 0:00:02]} Qxd1+ {[%emt 0:00:02]} 8. Kxd1 {[%emt 0:00:01]} Bc5 {[%emt 0:00:01]} 9. Nf3 {[%emt 0:02:27]} f6 {[%emt 0:00:01]} 10. Ke2 {[%emt 0:00:03]} Ke7 {[%emt 0:01:26]} 11. Be3 {[%emt 0:00:06]} Nd7 {[%emt 0:00:02]} 12. c3 {[%emt 0:02:25]} Bxe3 {[%emt 0:01:32]} 13. Kxe3 {[%emt 0:00:01]} Nc5 {[%emt 0:00:02]} 14. Bc2 {[%emt 0:00:01]} a5 {[%emt 0:01:29]} 15. Nd2 {[%emt 0:04:12]} Be6 {[%emt 0:00:07]} 16. b4 {[%emt 0:03:06]} axb4 {[%emt 0:00:07]} 17. cxb4 {[%emt 0:00:01]} Ra3+ {[%emt 0:00:29]} 18. Ke2 {[%emt 0:02:13]} Na6 {[%emt 0:00:01]} 19. b5 {[%emt 0:02:30]} cxb5 {[%emt 0:01:42]} 20. Rhb1 {[%emt 0:00:25]} Rxa2 {[%emt 0:02:20]} 21. Rxa2 {[%emt 0:00:14]} Bxa2 {[%emt 0:00:02]} 22. Rxb5 {[%emt 0:00:12]} Rb8 {[%emt 0:00:03]} 23. Nb3 {[%emt 0:00:56]} b6 {[%emt 0:02:42]} 24. Bd3 {[%emt 0:00:24]} Bxb3 {[%emt 0:00:15]} 25. Rxb3 {[%emt 0:00:01]} Nc5 {[%emt 0:00:02]} 26. Ra3 {[%emt 0:00:18]} Rd8 {[%emt 0:01:18]} 27. Bc2 {[%emt 0:01:03]} Ne6 {[%emt 0:00:07]} 28. Ke1 {[%emt 0:00:08]} Nd4 {[%emt 0:00:13]} 29. Bd3 {[%emt 0:00:05]} Rd7 {[%emt 0:01:51]} 30. Ra2 {[%emt 0:00:06]} b5 {[%emt 0:00:04]} 31. Rb2 {[%emt 0:00:01]} Rb7 {[%emt 0:00:01]} 32. Kd2 {[%emt 0:00:01]} Kd6 {[%emt 0:00:02]} 33. Kc3 {[%emt 0:00:04]} Kc5 {[%emt 0:00:01]} 34. f3 {[%emt 0:00:01]} Ra7 {[%emt 0:00:31]} 35. Kd2 {[%emt 0:00:04]} b4 {[%emt 0:00:01]} 36. Bc2 {[%emt 0:00:18]} b3 {[%emt 0:01:06]} 37. Bd1 {[%emt 0:00:07]} Kb4 {[%emt 0:00:10]} 0-1

[Event "HUN-ch Rapid 2018"]
[Site "Ajka"]
[Date "2018.07.21"]
[Round "8"]
[White "Mihok, Laszlo"]
[Black "Papp, Gellert"]
[Result "0-1"]
[ECO "A45"]
[WhiteElo "2066"]
[BlackElo "2324"]
[Annotator "NA RC"]
[PlyCount "94"]
[EventDate "2018.07.20"]
[EventType "swiss"]
[EventCountry "HUN"]
[SourceTitle "playchess.com"]
[Source "ChessBase"]
[SourceQuality "1"]
[TimeControl "1200+5"]

1. d4 {[%emt 0:00:02]} Nf6 {[%emt 0:02:36]} 2. Bg5 {[%emt 0:00:01]} c5 {[%emt 0:00:03]} 3. Bxf6 {[%emt 0:00:07]} gxf6 {[%emt 0:00:07]} 4. d5 {[%emt 0:00:03]} Qb6 {[%emt 0:00:01]} 5. Qc1 {[%emt 0:00:07]} f5 {[%emt 0:00:03]} 6. e3 {[%emt 0:00:23]} d6 {[%emt 0:00:14]} 7. c4 {[%emt 0:00:03]} Nd7 {[%emt 0:00:18]} 8. Nc3 {[%emt 0:00:02]} Nf6 {[%emt 0:00:08]} 9. Nh3 {[%emt 0:00:27]} Bh6 {[%emt 0:00:06]} 10. Bd3 {[%emt 0:00:06]} e5 {[%emt 0:00:38]} 11. O-O {[%emt 0:00:17]} Bd7 {[%emt 0:00:22]} 12. f4 {[%emt 0:00:02]} e4 {[%emt 0:00:13]} 13. Be2 {[%emt 0:00:01]} Rg8 {[%emt 0:00:14]} 14. Kh1 {[%emt 0:00:09]} O-O-O {[%emt 0:00:11]} 15. Nf2 {[%emt 0:00:30]} Bg7 {[%emt 0:02:46]} 16. Qc2 {[%emt 0:00:49]} h5 {[%emt 0:00:38]} 17. a3 {[%emt 0:00:05]} Ng4 18. Nxg4 {[%emt 0:00:32]} hxg4 {[%emt 0:00:13]} 19. g3 {[%emt 0:00:01]} Rh8 {[%emt 0:00:10]} 20. Rf2 {[%emt 0:00:01]} Qa5 {[%emt 0:02:34]} 21. Ra2 {[%emt 0:00:32]} Kb8 {[%emt 0:00:46]} 22. Kg1 {[%emt 0:00:17]} Ka8 {[%emt 0:00:19]} 23. Bf1 {[%emt 0:02:31]} Rb8 {[%emt 0:00:54]} 24. Qc1 {[%emt 0:00:45]} a6 {[%emt 0:00:16]} 25. b4 {[%emt 0:00:41]} cxb4 {[%emt 0:00:37]} 26. axb4 {[%emt 0:00:02]} Qxb4 {[%emt 0:00:05]} 27. Nb5 {[%emt 0:00:09]} Rbc8 {[%emt 0:00:23]} 28. Rfc2 {[%emt 0:00:17]} Qc5 {[%emt 0:00:45]} 29. Qd2 {[%emt 0:00:28]} Kb8 {[%emt 0:00:24]} 30. Nd4 {[%emt 0:00:09]} Rhe8 {[%emt 0:01:39]} 31. Ra5 {[%emt 0:00:27]} Qa7 {[%emt 0:00:08]} 32. Rb2 {[%emt 0:00:08]} Bxd4 {[%emt 0:00:13]} 33. exd4 {[%emt 0:00:52]} e3 {[%emt 0:00:19]} 34. Qd3 {[%emt 0:00:02]} Re4 {[%emt 0:00:13]} 35. c5 {[%emt 0:00:02]} Ka8 {[%emt 0:01:42]} 36. Bg2 {[%emt 0:02:51]} dxc5 {[%emt 0:00:35]} 37. Bxe4 {[%emt 0:00:42]} fxe4 {[%emt 0:00:03]} 38. Qxe4 {[%emt 0:00:02]} cxd4 {[%emt 0:00:03]} 39. Ra1 {[%emt 0:01:03]} Re8 {[%emt 0:00:54]} 40. Qd3 {[%emt 0:00:23]} Qc5 {[%emt 0:00:27]} 41. Kf1 {[%emt 0:03:28]} Kb8 {[%emt 0:00:43]} 42. Qb3 {[%emt 0:00:39]} Bb5+ {[%emt 0:00:05]} 43. Ke1 {[%emt 0:00:17]} d3 {[%emt 0:00:01]} 44. Qa3 {[%emt 0:01:12]} d2+ {[%emt 0:00:05]} 45. Rxd2 {[%emt 0:00:20]} exd2+ {[%emt 0:00:01]} 46. Kxd2 {[%emt 0:00:00]} Re2+ {[%emt 0:00:02]} 47. Kd1 {[%emt 0:00:04]} Qc2# 0-1

[Event "HUN-ch Rapid 2018"]
[Site "Ajka"]
[Date "2018.07.21"]
[Round "8"]
[White "Czupor, Attila"]
[Black "Martini, Balazs"]
[Result "0-1"]
[ECO "B32"]
[WhiteElo "2045"]
[BlackElo "2295"]
[Annotator "NA RC"]
[PlyCount "58"]
[EventDate "2018.07.20"]
[EventType "swiss"]
[EventCountry "HUN"]
[SourceTitle "playchess.com"]
[Source "ChessBase"]
[SourceQuality "1"]
[TimeControl "1200+5"]

1. e4 {[%emt 0:00:03]} c5 {[%emt 0:00:57]} 2. Nf3 {[%emt 0:00:02]} Nc6 {[%emt 0:00:01]} 3. d4 {[%emt 0:00:03]} cxd4 {[%emt 0:00:02]} 4. Nxd4 {[%emt 0:00:01]} e5 {[%emt 0:00:01]} 5. Nb5 {[%emt 0:00:01]} d6 {[%emt 0:00:00]} 6. c4 {[%emt 0:00:10]} Be7 {[%emt 0:00:01]} 7. Be3 {[%emt 0:00:45]} f5 {[%emt 0:01:16]} 8. exf5 {[%emt 0:00:35]} Bxf5 {[%emt 0:00:02]} 9. Bd3 {[%emt 0:00:21]} Be6 {[%emt 0:00:02]} 10. N1c3 {[%emt 0:00:36]} a6 {[%emt 0:00:52]} 11. Na3 {[%emt 0:00:18]} Nf6 {[%emt 0:00:02]} 12. O-O {[%emt 0:00:52]} Qd7 {[%emt 0:01:45]} 13. Na4 {[%emt 0:02:49]} Bd8 {[%emt 0:00:18]} 14. Nc2 {[%emt 0:04:36]} O-O {[%emt 0:00:37]} 15. b4 {[%emt 0:00:53]} e4 {[%emt 0:01:16]} 16. Be2 {[%emt 0:00:11]} Ne5 {[%emt 0:00:06]} 17. Nb2 {[%emt 0:01:03]} Rc8 {[%emt 0:01:00]} 18. c5 {[%emt 0:02:11]} Nd5 {[%emt 0:03:30]} 19. Nc4 {[%emt 0:00:56]} Nc3 {[%emt 0:02:18]} 20. Nxe5 {[%emt 0:00:07]} dxe5 {[%emt 0:00:02]} 21. Qe1 {[%emt 0:00:10]} Nxe2+ {[%emt 0:02:46]} 22. Qxe2 {[%emt 0:00:01]} Qf7 {[%emt 0:00:27]} 23. Na3 {[%emt 0:00:58]} Qg6 {[%emt 0:00:34]} 24. Nc4 {[%emt 0:01:23]} Bg4 {[%emt 0:00:41]} 25. Qc2 {[%emt 0:01:29]} Bf3 {[%emt 0:00:16]} 26. g3 {[%emt 0:00:17]} Qe6 {[%emt 0:01:20]} 27. Bd2 {[%emt 0:00:43]} Qh3 {[%emt 0:00:18]} 28. Ne3 {[%emt 0:00:02]} Rf6 {[%emt 0:00:15]} 29. Qc4+ {[%emt 0:00:28]} Kh8 {[%emt 0:00:13]} 0-1

[Event "HUN-ch Rapid 2018"]
[Site "Ajka"]
[Date "2018.07.21"]
[Round "9"]
[White "Csonka, Attila Istvan"]
[Black "Teglas, Balazs"]
[Result "1-0"]
[ECO "B40"]
[WhiteElo "2337"]
[BlackElo "2201"]
[Annotator "NA RC"]
[PlyCount "99"]
[EventDate "2018.07.20"]
[EventType "swiss"]
[EventCountry "HUN"]
[SourceTitle "playchess.com"]
[Source "ChessBase"]
[SourceQuality "1"]
[TimeControl "1200+5"]

1. e4 {[%emt 0:00:01]} c5 {[%emt 0:00:31]} 2. Nf3 {[%emt 0:00:02]} e6 {[%emt 0:00:01]} 3. b3 {[%emt 0:00:02]} Nc6 {[%emt 0:00:11]} 4. Bb2 {[%emt 0:00:01]} Nge7 {[%emt 0:00:08]} 5. g3 {[%emt 0:00:19]} d6 {[%emt 0:00:07]} 6. Bg2 {[%emt 0:00:01]} e5 {[%emt 0:00:03]} 7. h3 {[%emt 0:00:23]} g6 {[%emt 0:00:02]} 8. O-O {[%emt 0:00:02]} Bg7 {[%emt 0:00:01]} 9. c3 {[%emt 0:00:05]} O-O {[%emt 0:00:12]} 10. d4 {[%emt 0:00:02]} exd4 {[%emt 0:01:50]} 11. cxd4 {[%emt 0:00:02]} d5 {[%emt 0:00:06]} 12. exd5 {[%emt 0:01:07]} Nxd5 {[%emt 0:00:03]} 13. Na3 {[%emt 0:00:08]} Ndb4 {[%emt 0:01:11]} 14. Nc4 {[%emt 0:01:04]} Nxd4 {[%emt 0:00:07]} 15. Nxd4 {[%emt 0:01:19]} cxd4 {[%emt 0:00:10]} 16. Qd2 {[%emt 0:00:13]} Nc6 {[%emt 0:00:39]} 17. Rad1 {[%emt 0:00:25]} Bd7 {[%emt 0:00:24]} 18. Ba3 {[%emt 0:00:26]} Be6 {[%emt 0:06:01]} 19. Bxf8 {[%emt 0:00:22]} Qxf8 {[%emt 0:00:02]} 20. Na5 {[%emt 0:00:16]} Nxa5 {[%emt 0:02:32]} 21. Qxa5 {[%emt 0:00:02]} Qe7 {[%emt 0:00:17]} 22. Rfe1 {[%emt 0:00:13]} Qd7 {[%emt 0:00:04]} 23. Kh2 {[%emt 0:00:05]} b6 {[%emt 0:00:09]} 24. Qg5 {[%emt 0:01:04]} Rc8 {[%emt 0:00:21]} 25. Rc1 {[%emt 0:00:11]} Rc3 {[%emt 0:00:07]} 26. Red1 {[%emt 0:00:27]} h6 {[%emt 0:00:08]} 27. Qf4 {[%emt 0:00:04]} Qe7 {[%emt 0:01:40]} 28. Re1 {[%emt 0:00:53]} Qd7 {[%emt 0:00:06]} 29. Rcd1 {[%emt 0:00:14]} Kh7 {[%emt 0:00:22]} 30. Re2 {[%emt 0:00:31]} h5 {[%emt 0:01:09]} 31. Qe4 {[%emt 0:00:31]} Bf6 {[%emt 0:00:48]} 32. Red2 {[%emt 0:00:45]} Bf5 {[%emt 0:00:15]} 33. Qd5 {[%emt 0:00:06]} Qe7 {[%emt 0:00:12]} 34. Bf3 {[%emt 0:01:06]} Kg7 {[%emt 0:01:45]} 35. Kg2 {[%emt 0:00:22]} Be6 {[%emt 0:00:05]} 36. Qe4 {[%emt 0:00:12]} Qd7 {[%emt 0:00:04]} 37. Rxd4 {[%emt 0:00:29]} Bxd4 {[%emt 0:00:07]} 38. Rxd4 Qe7 {[%emt 0:00:01]} 39. Qe2 {[%emt 0:01:53]} Qc7 {[%emt 0:00:35]} 40. Rf4 {[%emt 0:00:52]} Rc2 {[%emt 0:00:05]} 41. Qd1 {[%emt 0:01:16]} Qc5 {[%emt 0:00:14]} 42. Be4 {[%emt 0:00:21]} Rxa2 {[%emt 0:00:10]} 43. Qb1 {[%emt 0:00:01]} Qa3 {[%emt 0:00:18]} 44. Qd1 {[%emt 0:00:17]} Qb2 {[%emt 0:00:05]} 45. Qd6 {[%emt 0:00:24]} Bxb3 {[%emt 0:00:09]} 46. Bd5 {[%emt 0:00:20]} Bxd5+ {[%emt 0:00:02]} 47. Qxd5 {[%emt 0:00:01]} Ra5 {[%emt 0:00:05]} 48. Qxf7+ {[%emt 0:00:19]} Kh6 {[%emt 0:00:08]} 49. Rf6 {[%emt 0:00:06]} Qc2 {[%emt 0:00:07]} 50. Qf8+ {[%emt 0:00:04]} 1-0

[Event "HUN-ch Rapid 2018"]
[Site "Ajka"]
[Date "2018.07.21"]
[Round "9"]
[White "Papp, Gellert"]
[Black "Miszler, Levente"]
[Result "1-0"]
[ECO "B00"]
[WhiteElo "2324"]
[BlackElo "1809"]
[Annotator "NA RC"]
[PlyCount "67"]
[EventDate "2018.07.20"]
[EventType "swiss"]
[EventCountry "HUN"]
[SourceTitle "playchess.com"]
[Source "ChessBase"]
[SourceQuality "1"]
[TimeControl "1200+5"]

1. e4 {[%emt 0:00:40]} Nc6 {[%emt 0:00:02]} 2. d4 {[%emt 0:00:03]} e5 {[%emt 0:00:02]} 3. d5 {[%emt 0:00:51]} Nce7 {[%emt 0:00:02]} 4. c4 {[%emt 0:00:17]} Ng6 {[%emt 0:00:02]} 5. Be3 {[%emt 0:00:03]} b6 {[%emt 0:00:03]} 6. Nc3 {[%emt 0:00:39]} Bc5 {[%emt 0:00:05]} 7. Bxc5 {[%emt 0:02:22]} bxc5 {[%emt 0:00:02]} 8. d6 {[%emt 0:00:02]} c6 {[%emt 0:02:07]} 9. Nf3 {[%emt 0:02:34]} Nf6 {[%emt 0:00:21]} 10. h4 {[%emt 0:00:30]} O-O {[%emt 0:01:32]} 11. h5 {[%emt 0:02:18]} Nf4 {[%emt 0:00:02]} 12. h6 {[%emt 0:00:04]} g6 {[%emt 0:04:47]} 13. g3 {[%emt 0:00:04]} Ne6 {[%emt 0:00:02]} 14. Nxe5 {[%emt 0:00:15]} Re8 {[%emt 0:00:06]} 15. Bg2 {[%emt 0:01:01]} Ng5 {[%emt 0:01:23]} 16. f4 {[%emt 0:01:07]} Ngxe4 {[%emt 0:00:05]} 17. Nxe4 {[%emt 0:00:01]} Nxe4 {[%emt 0:00:02]} 18. Bxe4 {[%emt 0:00:02]} f6 {[%emt 0:00:20]} 19. O-O {[%emt 0:02:08]} fxe5 {[%emt 0:00:25]} 20. f5 {[%emt 0:00:08]} Qg5 {[%emt 0:00:44]} 21. Kg2 {[%emt 0:00:13]} Ba6 {[%emt 0:00:54]} 22. Qc2 {[%emt 0:02:36]} Qxh6 {[%emt 0:00:49]} 23. fxg6 {[%emt 0:00:03]} hxg6 {[%emt 0:02:40]} 24. Rf6 {[%emt 0:00:07]} Re6 {[%emt 0:00:18]} 25. Rxe6 {[%emt 0:00:33]} dxe6 {[%emt 0:00:01]} 26. d7 {[%emt 0:00:53]} Rd8 {[%emt 0:00:14]} 27. Rd1 {[%emt 0:00:07]} Bb7 {[%emt 0:01:47]} 28. Qb3 {[%emt 0:00:11]} Ba8 {[%emt 0:00:08]} 29. Qc3 {[%emt 0:00:27]} Qg7 {[%emt 0:00:16]} 30. Qd3 {[%emt 0:00:09]} Qe7 {[%emt 0:01:22]} 31. Bxg6 {[%emt 0:00:07]} Bb7 {[%emt 0:00:15]} 32. Be8 {[%emt 0:00:11]} Rxe8 {[%emt 0:00:05]} 33. dxe8=Q+ {[%emt 0:00:02]} Qxe8 {[%emt 0:00:02]} 34. Qd8 {[%emt 0:00:11]} 1-0

[Event "HUN-ch Rapid 2018"]
[Site "Ajka"]
[Date "2018.07.21"]
[Round "9"]
[White "Papp, Petra"]
[Black "Jakab, Attila"]
[Result "0-1"]
[ECO "B27"]
[WhiteElo "2287"]
[BlackElo "2363"]
[Annotator "RC"]
[PlyCount "120"]
[EventDate "2018.07.20"]
[EventType "swiss"]
[EventCountry "HUN"]
[SourceTitle "playchess.com"]
[Source "ChessBase"]
[SourceQuality "1"]
[TimeControl "1200+5"]

1. e4 {[%emt 0:00:37]} c5 {[%emt 0:00:01]} 2. Nf3 {[%emt 0:00:07]} g6 {[%emt 0:00:02]} 3. d4 {[%emt 0:00:05]} Bg7 {[%emt 0:00:02]} 4. c4 {[%emt 0:00:17]} Qb6 {[%emt 0:00:04]} 5. Nc3 {[%emt 0:01:37]} cxd4 {[%emt 0:00:02]} 6. Nd5 {[%emt 0:00:13]} Qa5+ {[%emt 0:00:02]} 7. b4 {[%emt 0:02:07]} Qd8 {[%emt 0:00:02]} 8. Nxd4 {[%emt 0:01:06]} Nc6 {[%emt 0:00:55]} 9. Bb2 {[%emt 0:00:33]} Nf6 {[%emt 0:01:20]} 10. Nxf6+ {[%emt 0:00:20]} Bxf6 {[%emt 0:00:06]} 11. Nxc6 {[%emt 0:00:05]} dxc6 {[%emt 0:00:52]} 12. Qxd8+ {[%emt 0:02:38]} Kxd8 {[%emt 0:00:02]} 13. e5 {[%emt 0:01:09]} Bg7 {[%emt 0:00:03]} 14. Bd3 {[%emt 0:00:30]} Kc7 {[%emt 0:00:14]} 15. a3 {[%emt 0:03:49]} h5 {[%emt 0:00:50]} 16. Ke2 {[%emt 0:00:07]} h4 {[%emt 0:00:02]} 17. f4 {[%emt 0:00:40]} Bg4+ {[%emt 0:02:57]} 18. Ke3 {[%emt 0:00:02]} Rad8 {[%emt 0:00:22]} 19. Be2 {[%emt 0:00:13]} Bf5 {[%emt 0:02:08]} 20. Rhd1 {[%emt 0:00:38]} Rxd1 {[%emt 0:00:55]} 21. Rxd1 {[%emt 0:00:03]} Rg8 {[%emt 0:00:24]} 22. Bd3 {[%emt 0:00:40]} Rd8 {[%emt 0:02:11]} 23. Be2 {[%emt 0:00:15]} Ra8 {[%emt 0:00:02]} 24. Bc3 {[%emt 0:00:37]} Bh6 {[%emt 0:00:10]} 25. Bd3 {[%emt 0:00:21]} e6 {[%emt 0:00:12]} 26. Be2 {[%emt 0:00:17]} Bf8 {[%emt 0:00:07]} 27. g4 {[%emt 0:00:14]} hxg3 {[%emt 0:00:02]} 28. hxg3 {[%emt 0:00:01]} g5 {[%emt 0:00:05]} 29. Bh5 {[%emt 0:01:40]} a5 {[%emt 0:00:17]} 30. bxa5 {[%emt 0:00:58]} Bc5+ {[%emt 0:00:23]} 31. Bd4 {[%emt 0:00:27]} gxf4+ {[%emt 0:00:02]} 32. gxf4 {[%emt 0:00:02]} Bxd4+ {[%emt 0:00:22]} 33. Rxd4 {[%emt 0:00:09]} Rxa5 {[%emt 0:00:01]} 34. Bxf7 {[%emt 0:00:04]} Rxa3+ {[%emt 0:00:03]} 35. Kf2 {[%emt 0:00:07]} Rc3 {[%emt 0:01:03]} 36. Ke2 {[%emt 0:00:06]} Kb6 {[%emt 0:00:58]} 37. Kd2 {[%emt 0:00:05]} Rf3 {[%emt 0:01:48]} 38. Rd6 {[%emt 0:00:04]} Rxf4 {[%emt 0:00:51]} 39. Bxe6 {[%emt 0:00:00]} Bxe6 {[%emt 0:00:01]} 40. Rxe6 {[%emt 0:00:01]} Rxc4 {[%emt 0:00:20]} 41. Kd3 {[%emt 0:00:00]} Kc5 {[%emt 0:00:02]} 42. Re8 {[%emt 0:00:05]} Rd4+ {[%emt 0:00:40]} 43. Kc3 {[%emt 0:00:03]} b5 {[%emt 0:00:07]} 44. e6 {[%emt 0:00:08]} b4+ {[%emt 0:00:03]} 45. Kc2 {[%emt 0:00:04]} Re4 {[%emt 0:00:35]} 46. Kb3 {[%emt 0:00:19]} Re3+ {[%emt 0:00:03]} 47. Kc2 {[%emt 0:00:01]} Kc4 {[%emt 0:00:03]} 48. e7 {[%emt 0:00:01]} c5 {[%emt 0:00:05]} 49. Kd2 {[%emt 0:00:09]} Re4 {[%emt 0:00:03]} 50. Kc2 {[%emt 0:00:10]} Re2+ {[%emt 0:00:22]} 51. Kd1 {[%emt 0:00:02]} Re5 {[%emt 0:00:02]} 52. Kd2 {[%emt 0:00:03]} Kb3 {[%emt 0:00:31]} 53. Kd3 {[%emt 0:00:09]} c4+ {[%emt 0:00:13]} 54. Kd4 {[%emt 0:00:00]} Re1 {[%emt 0:00:01]} 55. Kc5 {[%emt 0:00:05]} c3 {[%emt 0:00:06]} 56. Rb8 {[%emt 0:00:01]} Re5+ {[%emt 0:00:02]} 57. Kd6 {[%emt 0:00:10]} Rxe7 {[%emt 0:00:02]} 58. Kxe7 {[%emt 0:00:01]} c2 {[%emt 0:00:01]} 59. Rc8 {[%emt 0:00:10]} Kb2 {[%emt 0:00:02]} 60. Rb8 {[%emt 0:00:05]} b3 {[%emt 0:00:02]} 0-1

[Event "HUN-ch Rapid 2018"]
[Site "Ajka"]
[Date "2018.07.21"]
[Round "9"]
[White "Laszlo, Janos"]
[Black "Hajnal, Zoltan"]
[Result "0-1"]
[ECO "A06"]
[WhiteElo "2273"]
[BlackElo "2357"]
[Annotator "NA RC"]
[PlyCount "132"]
[EventDate "2018.07.20"]
[EventType "swiss"]
[EventCountry "HUN"]
[SourceTitle "playchess.com"]
[Source "ChessBase"]
[SourceQuality "1"]
[TimeControl "1200+5"]

1. Nf3 {[%emt 0:00:02]} d5 {[%emt 0:00:01]} 2. e3 {[%emt 0:00:02]} Nf6 {[%emt 0:00:02]} 3. c4 {[%emt 0:00:02]} c6 {[%emt 0:00:01]} 4. Nc3 {[%emt 0:00:03]} Bf5 {[%emt 0:00:06]} 5. cxd5 {[%emt 0:00:11]} cxd5 {[%emt 0:00:02]} 6. Qb3 {[%emt 0:00:06]} Bc8 {[%emt 0:00:01]} 7. d4 {[%emt 0:00:06]} Nc6 {[%emt 0:00:01]} 8. Bb5 {[%emt 0:00:12]} e6 {[%emt 0:00:05]} 9. O-O {[%emt 0:00:21]} Bd7 {[%emt 0:00:04]} 10. Bd2 {[%emt 0:01:31]} Bd6 {[%emt 0:00:15]} 11. Rfc1 {[%emt 0:00:15]} O-O {[%emt 0:00:05]} 12. Qd1 {[%emt 0:00:19]} a6 {[%emt 0:00:58]} 13. Bd3 {[%emt 0:00:12]} b5 {[%emt 0:00:32]} 14. Qe2 {[%emt 0:03:05]} e5 {[%emt 0:02:52]} 15. dxe5 {[%emt 0:00:29]} Nxe5 {[%emt 0:00:01]} 16. Nxe5 {[%emt 0:02:02]} Bxe5 {[%emt 0:00:01]} 17. h3 {[%emt 0:01:01]} Re8 {[%emt 0:01:06]} 18. Qf3 {[%emt 0:01:35]} b4 {[%emt 0:01:25]} 19. Nd1 {[%emt 0:00:19]} Qb6 {[%emt 0:00:26]} 20. a3 {[%emt 0:00:40]} a5 {[%emt 0:00:20]} 21. axb4 {[%emt 0:01:02]} axb4 {[%emt 0:00:01]} 22. Rxa8 {[%emt 0:01:11]} Rxa8 {[%emt 0:00:01]} 23. Qe2 {[%emt 0:00:53]} g6 {[%emt 0:03:21]} 24. Qe1 {[%emt 0:00:23]} Bd6 {[%emt 0:00:02]} 25. b3 {[%emt 0:00:58]} Bc6 {[%emt 0:01:02]} 26. Nb2 {[%emt 0:00:48]} Qb7 {[%emt 0:01:04]} 27. Bf1 {[%emt 0:00:23]} Ne4 {[%emt 0:03:22]} 28. Nd3 {[%emt 0:00:25]} Bb5 {[%emt 0:00:10]} 29. Qd1 {[%emt 0:02:53]} Qe7 {[%emt 0:03:12]} 30. Be1 {[%emt 0:00:16]} Rd8 {[%emt 0:01:05]} 31. Rc2 {[%emt 0:00:13]} h5 {[%emt 0:00:13]} 32. Qc1 {[%emt 0:00:04]} Qg5 {[%emt 0:00:09]} 33. Rc8 {[%emt 0:00:16]} Rxc8 {[%emt 0:00:21]} 34. Qxc8+ {[%emt 0:00:01]} Kg7 {[%emt 0:00:03]} 35. Qb7 {[%emt 0:00:04]} Bxd3 {[%emt 0:00:10]} 36. Bxd3 {[%emt 0:00:02]} Nc3 {[%emt 0:00:06]} 37. Qc6 {[%emt 0:00:14]} Qe5 {[%emt 0:00:01]} 38. g3 {[%emt 0:00:08]} Ne4 {[%emt 0:00:06]} 39. Kg2 {[%emt 0:00:05]} h4 {[%emt 0:00:02]} 40. f4 {[%emt 0:00:17]} Qe6 {[%emt 0:00:10]} 41. g4 {[%emt 0:00:08]} g5 {[%emt 0:00:02]} 42. Qc1 {[%emt 0:00:05]} gxf4 {[%emt 0:00:07]} 43. exf4 {[%emt 0:00:01]} Nc5 {[%emt 0:00:01]} 44. Bb1 {[%emt 0:00:09]} Qe2+ {[%emt 0:00:01]} 45. Bf2 {[%emt 0:00:03]} Ne4 {[%emt 0:00:03]} 46. Bxe4 {[%emt 0:00:02]} dxe4 {[%emt 0:00:00]} 47. Kg1 {[%emt 0:00:03]} Qd3 {[%emt 0:00:13]} 48. Qe3 {[%emt 0:00:02]} f6 {[%emt 0:00:13]} 49. Qxd3 {[%emt 0:00:02]} exd3 {[%emt 0:00:01]} 50. Kf1 {[%emt 0:00:01]} Bxf4 {[%emt 0:00:02]} 51. Bc5 {[%emt 0:00:02]} Bd2 {[%emt 0:00:03]} 52. Kf2 {[%emt 0:00:02]} f5 {[%emt 0:00:01]} 53. gxf5 Kf6 54. Kf3 Kxf5 55. Be7 {[%emt 0:00:08]} Bg5 {[%emt 0:00:02]} 56. Bxb4 {[%emt 0:00:02]} Ke5 {[%emt 0:00:03]} 57. Bc3+ {[%emt 0:00:02]} Kd5 {[%emt 0:00:01]} 58. Kf2 {[%emt 0:00:02]} Bf4 {[%emt 0:00:02]} 59. Ke1 {[%emt 0:00:02]} Ke4 {[%emt 0:00:02]} 60. Kf2 {[%emt 0:00:04]} Be3+ {[%emt 0:00:01]} 61. Ke1 {[%emt 0:00:01]} Kf3 {[%emt 0:00:00]} 62. Bf6 {[%emt 0:00:04]} Kg3 {[%emt 0:00:01]} 63. b4 {[%emt 0:00:03]} Kxh3 {[%emt 0:00:01]} 64. b5 {[%emt 0:00:02]} Kg4 {[%emt 0:00:01]} 65. Bd8 {[%emt 0:00:03]} h3 {[%emt 0:00:04]} 66. b6 {[%emt 0:00:03]} Bxb6 {[%emt 0:00:03]} 0-1